[Event "Titled Tuesday Blitz March 21 Late 2023"]
[White "Sanal, Vahap"]
[Black "Bluebaum, Matthias"]
[WhiteFideId "6300545"]
[BlackFideId "24651516"]
[WhiteElo "2606"]
[BlackElo "2638"]
[Result "1-0"]
[Round "04"]
[TimeControl "180+2"]
[Date "2023.03.21"]
[WhiteClock "0:01:30"]
[BlackClock "0:00:17"]

1. e4 {[%clk 0:03:00]}  e6 {[%clk 0:03:00]} 2. d4 {[%clk 0:03:00]}  d5 {[%clk 0:03:01]} 3. Nd2 {[%clk 0:02:59]}  c5 {[%clk 0:03:01]} 4. exd5 {[%clk 0:02:59]}  Qxd5 {[%clk 0:03:02]} 5. Ngf3 {[%clk 0:03:00]}  cxd4 {[%clk 0:03:02]} 6. Bc4 {[%clk 0:03:00]}  Qd6 {[%clk 0:03:03]} 7. Qe2 {[%clk 0:03:01]}  Nf6 {[%clk 0:03:03]} 8. O-O {[%clk 0:03:01]}  Nc6 {[%clk 0:03:02]} 9. Nb3 {[%clk 0:02:58]}  Be7 {[%clk 0:03:00]} 10. Rd1 {[%clk 0:02:58]}  e5 {[%clk 0:03:00]} 11. c3 {[%clk 0:02:58]}  Bg4 {[%clk 0:02:55]} 12. h3 {[%clk 0:02:57]}  Bh5 {[%clk 0:02:16]} 13. g4 {[%clk 0:02:51]}  Bg6 {[%clk 0:02:15]} 14. cxd4 {[%clk 0:02:48]}  e4 {[%clk 0:02:16]} 15. Ne5 {[%clk 0:02:47]}  O-O {[%clk 0:02:12]} 16. Bf4 {[%clk 0:02:46]}  Qd8 {[%clk 0:01:42]} 17. Nxg6 {[%clk 0:02:46]}  hxg6 {[%clk 0:01:41]} 18. d5 {[%clk 0:02:46]}  Na5 {[%clk 0:01:05]} 19. d6 {[%clk 0:02:42]}  Nxc4 {[%clk 0:01:01]} 20. Qxc4 {[%clk 0:02:40]}  Re8 {[%clk 0:00:59]} 21. dxe7 {[%clk 0:02:39]}  Qxe7 {[%clk 0:01:00]} 22. Rac1 {[%clk 0:02:36]}  Nh7 {[%clk 0:00:53]} 23. Qc7 {[%clk 0:02:33]}  Qh4 {[%clk 0:00:53]} 24. Kg2 {[%clk 0:02:32]}  Nf8 {[%clk 0:00:53]} 25. Bg3 {[%clk 0:02:30]}  Qf6 {[%clk 0:00:53]} 26. Qc3 {[%clk 0:02:26]}  Qa6 {[%clk 0:00:49]} 27. a3 {[%clk 0:02:24]}  b6 {[%clk 0:00:44]} 28. Qc4 {[%clk 0:02:22]}  Qb7 {[%clk 0:00:43]} 29. Qc6 {[%clk 0:02:23]}  Qa6 {[%clk 0:00:43]} 30. Nc5 {[%clk 0:02:24]}  Qe2 {[%clk 0:00:41]} 31. Nb7 {[%clk 0:02:15]}  Rac8 {[%clk 0:00:36]} 32. Qd5 {[%clk 0:02:13]}  Rxc1 {[%clk 0:00:17]} 33. Rxc1 {[%clk 0:02:14]}  Ne6 {[%clk 0:00:18]} 34. Nd6 {[%clk 0:02:08]}  Nf4+ {[%clk 0:00:14]} 35. Bxf4 {[%clk 0:02:06]}  Qf3+ {[%clk 0:00:15]} 36. Kg1 {[%clk 0:02:06]}  Qxf4 {[%clk 0:00:15]} 37. Rc4 {[%clk 0:01:31]}  Rd8 {[%clk 0:00:05]} 38. Rxe4 {[%clk 0:01:31]}  Qc1+ {[%clk 0:00:04]} 39. Kg2 {[%clk 0:01:31]}  Qc7 {[%clk 0:00:03]} 40. Re8+ {[%clk 0:01:30]}  Rxe8 {[%clk 0:00:04]} 41. Nxe8 {[%clk 0:01:31]}  Qc2 {[%clk 0:00:04]} 42. Nd6 {[%clk 0:01:31]}  Qxb2 {[%clk 0:00:04]} 43. Qa8+ {[%clk 0:01:30]}  Kh7 {[%clk 0:00:05]} 44. Nxf7 {[%clk 0:01:31]}  g5 {[%clk 0:00:05]} 45. Nxg5+ {[%clk 0:01:28]}  Kg6 {[%clk 0:00:05]} 46. Nf3 {[%clk 0:01:25]}  Qxa3 {[%clk 0:00:05]} 47. Qe4+ {[%clk 0:01:25]}  Kf7 {[%clk 0:00:05]} 48. g5 {[%clk 0:01:26]}  g6 {[%clk 0:00:05]} 49. Ne5+ {[%clk 0:01:26]}  Ke6 {[%clk 0:00:06]} 50. Nc4+ {[%clk 0:01:26]}  Kd7 {[%clk 0:00:06]} 51. Nxa3 {[%clk 0:01:27]}  Kd6 {[%clk 0:00:07]} 52. Qxg6+ {[%clk 0:01:27]}  Kc5 {[%clk 0:00:08]} 53. h4 {[%clk 0:01:27]}  Kb4 {[%clk 0:00:09]} 54. h5 {[%clk 0:01:28]}  Kb3 {[%clk 0:00:09]} 55. h6 {[%clk 0:01:29]}  b5 {[%clk 0:00:10]} 56. h7 {[%clk 0:01:30]}  b4 {[%clk 0:00:11]} 57. h8=Q {[%clk 0:01:31]}  Kxa3 {[%clk 0:00:11]} 58. Qd3+ {[%clk 0:01:31]}  b3 {[%clk 0:00:12]} 59. Qhc3 {[%clk 0:01:32]}  Ka2 {[%clk 0:00:13]} 60. Qxb3+ {[%clk 0:01:32]}  Ka1 {[%clk 0:00:14]} 61. g6 {[%clk 0:01:33]}  a5 {[%clk 0:00:14]} 62. g7 {[%clk 0:01:33]}  a4 {[%clk 0:00:15]} 63. Qbc2 {[%clk 0:01:33]}  a3 {[%clk 0:00:16]} 64. g8=B {[%clk 0:01:30]}  a2 {[%clk 0:00:17]} 65. Qd4# {[%clk 0:01:30]} 1-0


[Site "https://www.chess.com"]

[Event "Titled Tuesday Blitz March 21 Late 2023"]
[White "Albornoz Cabrera, Carlos Daniel"]
[Black "Maghsoodloo, Parham"]
[WhiteFideId "3518736"]
[BlackFideId "12539929"]
[WhiteElo "2501"]
[BlackElo "2647"]
[Result "0-1"]
[Round "04"]
[TimeControl "180+2"]
[Date "2023.03.21"]
[WhiteClock "0:00:01"]
[BlackClock "0:00:11"]

1. Nf3 {[%clk 0:03:00]}  d5 {[%clk 0:02:49]} 2. d4 {[%clk 0:03:00]}  c6 {[%clk 0:02:49]} 3. c4 {[%clk 0:03:00]}  Nf6 {[%clk 0:02:49]} 4. Nc3 {[%clk 0:03:00]}  e6 {[%clk 0:02:48]} 5. Bg5 {[%clk 0:02:59]}  h6 {[%clk 0:02:48]} 6. Bh4 {[%clk 0:02:59]}  Nbd7 {[%clk 0:02:47]} 7. e3 {[%clk 0:02:58]}  Be7 {[%clk 0:02:41]} 8. Bd3 {[%clk 0:02:58]}  O-O {[%clk 0:02:40]} 9. O-O {[%clk 0:02:58]}  a5 {[%clk 0:02:38]} 10. Rc1 {[%clk 0:02:44]}  dxc4 {[%clk 0:02:07]} 11. Bxc4 {[%clk 0:02:44]}  b5 {[%clk 0:02:08]} 12. Bd3 {[%clk 0:02:43]}  Bb7 {[%clk 0:02:06]} 13. Bxf6 {[%clk 0:02:30]}  Nxf6 {[%clk 0:02:05]} 14. Ne4 {[%clk 0:02:31]}  Nd7 {[%clk 0:01:54]} 15. Nc5 {[%clk 0:02:11]}  Nxc5 {[%clk 0:01:53]} 16. dxc5 {[%clk 0:02:12]}  Bf6 {[%clk 0:01:54]} 17. Nd4 {[%clk 0:02:07]}  b4 {[%clk 0:01:50]} 18. Be4 {[%clk 0:02:02]}  Qc7 {[%clk 0:01:43]} 19. Qf3 {[%clk 0:02:00]}  Bxd4 {[%clk 0:01:30]} 20. exd4 {[%clk 0:02:00]}  Rfd8 {[%clk 0:01:30]} 21. Rcd1 {[%clk 0:01:55]}  Rac8 {[%clk 0:01:25]} 22. h4 {[%clk 0:01:54]}  Ba6 {[%clk 0:01:25]} 23. Rfe1 {[%clk 0:01:54]}  Bc4 {[%clk 0:01:25]} 24. Bb1 {[%clk 0:01:46]}  Bd5 {[%clk 0:01:17]} 25. Qd3 {[%clk 0:01:46]}  f5 {[%clk 0:01:17]} 26. Re5 {[%clk 0:01:28]}  Rf8 {[%clk 0:00:55]} 27. Qe3 {[%clk 0:01:26]}  Rf6 {[%clk 0:00:53]} 28. b3 {[%clk 0:01:05]}  Qf7 {[%clk 0:00:47]} 29. Qe2 {[%clk 0:00:48]}  Rg6 {[%clk 0:00:41]} 30. g3 {[%clk 0:00:48]}  Qf6 {[%clk 0:00:39]} 31. Kf1 {[%clk 0:00:40]}  Rf8 {[%clk 0:00:34]} 32. Bd3 {[%clk 0:00:39]}  Rg4 {[%clk 0:00:32]} 33. Bc4 {[%clk 0:00:37]}  Re4 {[%clk 0:00:31]} 34. Rxe4 {[%clk 0:00:33]}  fxe4 {[%clk 0:00:32]} 35. Qe3 {[%clk 0:00:29]}  Qf3 {[%clk 0:00:19]} 36. Qxf3 {[%clk 0:00:20]}  Rxf3 {[%clk 0:00:19]} 37. Ke2 {[%clk 0:00:07]}  Rc3 {[%clk 0:00:18]} 38. Ba6 {[%clk 0:00:05]}  a4 {[%clk 0:00:15]} 39. bxa4 {[%clk 0:00:03]}  Ra3 {[%clk 0:00:15]} 40. Rd2 {[%clk 0:00:01]}  Rxa4 {[%clk 0:00:15]} 41. Bc8 {[%clk 0:00:02]}  Rxa2 {[%clk 0:00:09]} 42. Rxa2 {[%clk 0:00:02]}  Bxa2 {[%clk 0:00:10]} 43. Kd2 {[%clk 0:00:02]}  Bd5 {[%clk 0:00:08]} 44. Ba6 {[%clk 0:00:02]}  Kf7 {[%clk 0:00:09]} 45. Be2 {[%clk 0:00:03]}  e5 {[%clk 0:00:09]} 46. dxe5 {[%clk 0:00:02]}  Ke6 {[%clk 0:00:09]} 47. Ke3 {[%clk 0:00:03]}  Kxe5 {[%clk 0:00:10]} 48. Bd1 {[%clk 0:00:01]}  g5 {[%clk 0:00:10]} 49. hxg5 {[%clk 0:00:01]}  hxg5 {[%clk 0:00:11]} 0-1


[Site "https://www.chess.com"]

[Event "Titled Tuesday Blitz March 21 Late 2023"]
[White "Ibarra Jerez, Jose Carlos"]
[Black "Wagner, Dennis"]
[WhiteFideId "2226332"]
[BlackFideId "24650684"]
[WhiteElo "2638"]
[BlackElo "2470"]
[Result "0-1"]
[Round "04"]
[TimeControl "180+2"]
[Date "2023.03.21"]
[WhiteClock "0:00:01"]
[BlackClock "0:00:07"]

1. Nf3 {[%clk 0:03:00]}  d5 {[%clk 0:02:59]} 2. b3 {[%clk 0:03:00]}  Bf5 {[%clk 0:02:56]} 3. Bb2 {[%clk 0:03:00]}  h6 {[%clk 0:02:55]} 4. e3 {[%clk 0:02:58]}  e6 {[%clk 0:02:55]} 5. d3 {[%clk 0:02:59]}  Nf6 {[%clk 0:02:54]} 6. Nbd2 {[%clk 0:02:59]}  Be7 {[%clk 0:02:53]} 7. g3 {[%clk 0:03:00]}  O-O {[%clk 0:02:53]} 8. Bg2 {[%clk 0:03:01]}  a5 {[%clk 0:02:51]} 9. a4 {[%clk 0:02:59]}  c6 {[%clk 0:02:50]} 10. O-O {[%clk 0:03:00]}  Na6 {[%clk 0:02:50]} 11. Nd4 {[%clk 0:02:57]}  Bh7 {[%clk 0:02:49]} 12. f4 {[%clk 0:02:57]}  Bd6 {[%clk 0:02:40]} 13. N2f3 {[%clk 0:02:57]}  Nd7 {[%clk 0:02:26]} 14. Qe2 {[%clk 0:02:49]}  Qe7 {[%clk 0:02:25]} 15. Nh4 {[%clk 0:02:35]}  Nb4 {[%clk 0:02:10]} 16. Rae1 {[%clk 0:02:34]}  Nc5 {[%clk 0:02:01]} 17. Rd1 {[%clk 0:02:30]}  Rfe8 {[%clk 0:01:44]} 18. Qg4 {[%clk 0:02:29]}  Qf8 {[%clk 0:01:23]} 19. Ndf3 {[%clk 0:02:03]}  Nxc2 {[%clk 0:00:51]} 20. Bc1 {[%clk 0:00:16]}  Nxb3 {[%clk 0:00:51]} 21. Kf2 {[%clk 0:00:15]}  Nxc1 {[%clk 0:00:43]} 22. Rxc1 {[%clk 0:00:16]}  Bf5 {[%clk 0:00:41]} 23. Qh5 {[%clk 0:00:14]}  g6 {[%clk 0:00:41]} 24. Nxf5 {[%clk 0:00:09]}  gxh5 {[%clk 0:00:39]} 25. Nxd6 {[%clk 0:00:09]}  Nxe3 {[%clk 0:00:37]} 26. Nxe8 {[%clk 0:00:08]}  Nxf1 {[%clk 0:00:26]} 27. Nf6+ {[%clk 0:00:08]}  Kg7 {[%clk 0:00:26]} 28. Nxh5+ {[%clk 0:00:08]}  Kg6 {[%clk 0:00:26]} 29. Ne5+ {[%clk 0:00:09]}  Kh7 {[%clk 0:00:20]} 30. Nf6+ {[%clk 0:00:07]}  Kh8 {[%clk 0:00:20]} 31. Kxf1 {[%clk 0:00:06]}  Qg7 {[%clk 0:00:17]} 32. Nh5 {[%clk 0:00:06]}  Qh7 {[%clk 0:00:13]} 33. Rb1 {[%clk 0:00:06]}  f5 {[%clk 0:00:11]} 34. Nf6 {[%clk 0:00:05]}  Qc7 {[%clk 0:00:11]} 35. Nfd7 {[%clk 0:00:05]}  Re8 {[%clk 0:00:06]} 36. Nc5 {[%clk 0:00:05]}  b5 {[%clk 0:00:06]} 37. axb5 {[%clk 0:00:04]}  cxb5 {[%clk 0:00:06]} 38. Rxb5 {[%clk 0:00:05]}  a4 {[%clk 0:00:07]} 39. Ned7 {[%clk 0:00:04]}  a3 {[%clk 0:00:06]} 40. Rb7 {[%clk 0:00:04]}  Qxb7 {[%clk 0:00:05]} 41. Nxb7 {[%clk 0:00:05]}  a2 {[%clk 0:00:06]} 42. Kf2 {[%clk 0:00:03]}  a1=Q {[%clk 0:00:06]} 43. Nbc5 {[%clk 0:00:03]}  Qd4+ {[%clk 0:00:06]} 44. Kf1 {[%clk 0:00:03]}  Ra8 {[%clk 0:00:06]} 45. Bf3 {[%clk 0:00:04]}  Ra1+ {[%clk 0:00:07]} 46. Kg2 {[%clk 0:00:04]}  Ra2+ {[%clk 0:00:07]} 47. Kh3 {[%clk 0:00:04]}  Qg1 {[%clk 0:00:07]} 48. Bg2 {[%clk 0:00:01]}  Qxg2+ {[%clk 0:00:07]} 0-1


[Site "https://www.chess.com"]

[Event "Titled Tuesday Blitz March 21 Late 2023"]
[White "Rostovtsev, Dmitry"]
[Black "Ozer, Omer Faruk"]
[WhiteFideId "34278320"]
[BlackFideId "6354564"]
[WhiteElo "2280"]
[BlackElo "2260"]
[Result "1-0"]
[Round "04"]
[TimeControl "180+2"]
[Date "2023.03.21"]
[WhiteClock "0:00:05"]
[BlackClock "0:00:14"]

1. e4 {[%clk 0:03:00]}  c5 {[%clk 0:02:59]} 2. Nf3 {[%clk 0:03:00]}  Nc6 {[%clk 0:02:58]} 3. Bb5 {[%clk 0:03:00]}  e5 {[%clk 0:02:57]} 4. O-O {[%clk 0:03:00]}  Bd6 {[%clk 0:02:53]} 5. Re1 {[%clk 0:03:00]}  a6 {[%clk 0:02:51]} 6. Bf1 {[%clk 0:02:58]}  Nge7 {[%clk 0:02:49]} 7. c3 {[%clk 0:02:59]}  Qc7 {[%clk 0:02:49]} 8. h3 {[%clk 0:02:57]}  O-O {[%clk 0:02:41]} 9. d4 {[%clk 0:02:56]}  cxd4 {[%clk 0:02:41]} 10. cxd4 {[%clk 0:02:57]}  exd4 {[%clk 0:02:41]} 11. Nxd4 {[%clk 0:02:58]}  Nxd4 {[%clk 0:02:41]} 12. Qxd4 {[%clk 0:02:59]}  b5 {[%clk 0:02:37]} 13. Nc3 {[%clk 0:02:49]}  Bb7 {[%clk 0:02:26]} 14. Rd1 {[%clk 0:02:33]}  Bc5 {[%clk 0:01:44]} 15. Qxd7 {[%clk 0:02:33]}  Qb6 {[%clk 0:01:44]} 16. Bg5 {[%clk 0:02:00]}  Bxf2+ {[%clk 0:01:34]} 17. Kh1 {[%clk 0:02:00]}  Ng6 {[%clk 0:01:30]} 18. Nd5 {[%clk 0:01:56]}  Bxd5 {[%clk 0:01:14]} 19. exd5 {[%clk 0:01:56]}  Be3 {[%clk 0:01:11]} 20. Bxe3 {[%clk 0:01:44]}  Qxe3 {[%clk 0:01:12]} 21. d6 {[%clk 0:01:44]}  Rfd8 {[%clk 0:01:06]} 22. Qb7 {[%clk 0:01:42]}  Nf4 {[%clk 0:00:43]} 23. d7 {[%clk 0:01:36]}  Ne6 {[%clk 0:00:35]} 24. Rac1 {[%clk 0:01:29]}  Ra7 {[%clk 0:00:24]} 25. Qc8 {[%clk 0:01:03]}  g6 {[%clk 0:00:23]} 26. Re1 {[%clk 0:00:54]}  Qg5 {[%clk 0:00:20]} 27. Qc6 {[%clk 0:00:22]}  Raxd7 {[%clk 0:00:19]} 28. Qxa6 {[%clk 0:00:22]}  b4 {[%clk 0:00:15]} 29. Rc2 {[%clk 0:00:16]}  Nd4 {[%clk 0:00:13]} 30. Rf2 {[%clk 0:00:15]}  Nf5 {[%clk 0:00:14]} 31. Qb5 {[%clk 0:00:09]}  Rd2 {[%clk 0:00:13]} 32. Rxd2 {[%clk 0:00:04]}  Rxd2 {[%clk 0:00:14]} 33. Qxb4 {[%clk 0:00:04]}  Ng3+ {[%clk 0:00:14]} 34. Kg1 {[%clk 0:00:04]}  Nxf1 {[%clk 0:00:14]} 35. Re8+ {[%clk 0:00:03]}  Kg7 {[%clk 0:00:14]} 36. Qf8+ {[%clk 0:00:04]}  Kf6 {[%clk 0:00:13]} 37. Qe7+ {[%clk 0:00:04]}  Kf5 {[%clk 0:00:13]} 38. Qe4+ {[%clk 0:00:04]}  Kf6 {[%clk 0:00:13]} 39. Qe7+ {[%clk 0:00:04]}  Kf5 {[%clk 0:00:14]} 40. Qe5# {[%clk 0:00:05]} 1-0


[Site "https://www.chess.com"]

[Event "Titled Tuesday Blitz March 21 Late 2023"]
[White "Erigaisi Arjun"]
[Black "Vetoshko, Volodymyr"]
[WhiteFideId "35009192"]
[BlackFideId "14122480"]
[WhiteElo "2737"]
[BlackElo "2422"]
[Result "1-0"]
[Round "04"]
[TimeControl "180+2"]
[Date "2023.03.21"]
[WhiteClock "0:00:53"]
[BlackClock "0:00:02"]

1. b3 {[%clk 0:03:00]}  Nf6 {[%clk 0:02:50]} 2. Bb2 {[%clk 0:02:54]}  e6 {[%clk 0:02:48]} 3. g3 {[%clk 0:02:52]}  Be7 {[%clk 0:02:46]} 4. Bg2 {[%clk 0:02:53]}  O-O {[%clk 0:02:47]} 5. Nf3 {[%clk 0:02:53]}  d5 {[%clk 0:02:47]} 6. O-O {[%clk 0:02:54]}  c5 {[%clk 0:02:47]} 7. c4 {[%clk 0:02:54]}  d4 {[%clk 0:02:46]} 8. e3 {[%clk 0:02:55]}  Nc6 {[%clk 0:02:47]} 9. exd4 {[%clk 0:02:56]}  cxd4 {[%clk 0:02:48]} 10. Re1 {[%clk 0:02:56]}  Ne8 {[%clk 0:02:17]} 11. d3 {[%clk 0:02:52]}  f6 {[%clk 0:02:12]} 12. Nbd2 {[%clk 0:02:46]}  e5 {[%clk 0:02:11]} 13. Nh4 {[%clk 0:02:46]}  Nc7 {[%clk 0:01:54]} 14. f4 {[%clk 0:02:46]}  exf4 {[%clk 0:01:48]} 15. gxf4 {[%clk 0:02:47]}  Bd6 {[%clk 0:01:34]} 16. f5 {[%clk 0:02:39]}  Bf4 {[%clk 0:01:26]} 17. Ndf3 {[%clk 0:02:21]}  Qd6 {[%clk 0:01:11]} 18. Re4 {[%clk 0:02:18]}  Be3+ {[%clk 0:00:45]} 19. Kh1 {[%clk 0:02:18]}  Bd7 {[%clk 0:00:44]} 20. Qf1 {[%clk 0:01:45]}  Rae8 {[%clk 0:00:43]} 21. Rg4 {[%clk 0:01:45]}  b6 {[%clk 0:00:29]} 22. Re1 {[%clk 0:01:41]}  g5 {[%clk 0:00:19]} 23. Bh3 {[%clk 0:01:23]}  Kh8 {[%clk 0:00:18]} 24. Ng2 {[%clk 0:01:22]}  h5 {[%clk 0:00:18]} 25. Nxe3 {[%clk 0:01:19]}  hxg4 {[%clk 0:00:14]} 26. Nxg4 {[%clk 0:01:20]}  Kg7 {[%clk 0:00:11]} 27. Rxe8 {[%clk 0:01:16]}  Rxe8 {[%clk 0:00:12]} 28. Nd2 {[%clk 0:01:17]}  Qe7 {[%clk 0:00:10]} 29. Ne4 {[%clk 0:01:16]}  Rf8 {[%clk 0:00:05]} 30. Qf2 {[%clk 0:01:14]}  Ne5 {[%clk 0:00:05]} 31. Nxe5 {[%clk 0:01:13]}  Qxe5 {[%clk 0:00:06]} 32. Bxd4 {[%clk 0:01:13]}  Qf4 {[%clk 0:00:05]} 33. Qxf4 {[%clk 0:01:10]}  gxf4 {[%clk 0:00:06]} 34. Kg2 {[%clk 0:01:11]}  b5 {[%clk 0:00:03]} 35. Kf3 {[%clk 0:01:08]}  bxc4 {[%clk 0:00:03]} 36. bxc4 {[%clk 0:01:09]}  Bc6 {[%clk 0:00:03]} 37. Kxf4 {[%clk 0:01:05]}  Bxe4 {[%clk 0:00:04]} 38. dxe4 {[%clk 0:01:06]}  Rh8 {[%clk 0:00:04]} 39. Kg3 {[%clk 0:01:05]}  a6 {[%clk 0:00:02]} 40. Bb6 {[%clk 0:01:04]}  Ne8 {[%clk 0:00:02]} 41. c5 {[%clk 0:01:04]}  Rg8 {[%clk 0:00:02]} 42. Bf1 {[%clk 0:01:04]}  Kf7+ {[%clk 0:00:02]} 43. Kf3 {[%clk 0:01:03]}  Ke7 {[%clk 0:00:03]} 44. Bxa6 {[%clk 0:01:02]}  Rh8 {[%clk 0:00:03]} 45. Kg3 {[%clk 0:00:57]}  Rg8+ {[%clk 0:00:03]} 46. Kf2 {[%clk 0:00:56]}  Rh8 {[%clk 0:00:04]} 47. Kg2 {[%clk 0:00:56]}  Rg8+ {[%clk 0:00:05]} 48. Kh1 {[%clk 0:00:55]}  Rg4 {[%clk 0:00:05]} 49. Bd3 {[%clk 0:00:55]}  Ng7 {[%clk 0:00:05]} 50. c6 {[%clk 0:00:55]}  Ne8 {[%clk 0:00:03]} 51. c7 {[%clk 0:00:52]}  Kd7 {[%clk 0:00:02]} 52. Bb5+ {[%clk 0:00:52]}  Kc8 {[%clk 0:00:02]} 53. Ba6+ {[%clk 0:00:53]} 1-0


[Site "https://www.chess.com"]

[Event "Titled Tuesday Blitz March 21 Late 2023"]
[White "Papasimakopoulos, Alexandros"]
[Black "Duda, Jan-Krzysztof"]
[WhiteFideId "4244125"]
[BlackFideId "1170546"]
[WhiteElo "2359"]
[BlackElo "2790"]
[Result "1-0"]
[Round "04"]
[TimeControl "180+2"]
[Date "2023.03.21"]
[WhiteClock "0:00:09"]
[BlackClock "0:00:09"]

1. d4 {[%clk 0:02:59]}  Nf6 {[%clk 0:02:58]} 2. c4 {[%clk 0:02:52]}  g6 {[%clk 0:02:57]} 3. Nc3 {[%clk 0:02:52]}  Bg7 {[%clk 0:02:58]} 4. Bg5 {[%clk 0:02:53]}  h6 {[%clk 0:02:57]} 5. Bh4 {[%clk 0:02:52]}  d6 {[%clk 0:02:55]} 6. e3 {[%clk 0:02:52]}  O-O {[%clk 0:02:53]} 7. Nf3 {[%clk 0:02:53]}  a5 {[%clk 0:02:49]} 8. Be2 {[%clk 0:02:52]}  b6 {[%clk 0:02:44]} 9. O-O {[%clk 0:02:50]}  Bb7 {[%clk 0:02:45]} 10. Nd2 {[%clk 0:02:50]}  Nbd7 {[%clk 0:02:44]} 11. Bf3 {[%clk 0:02:50]}  Qc8 {[%clk 0:02:45]} 12. h3 {[%clk 0:02:41]}  Re8 {[%clk 0:02:42]} 13. Bxb7 {[%clk 0:02:31]}  Qxb7 {[%clk 0:02:43]} 14. Qf3 {[%clk 0:02:32]}  c6 {[%clk 0:02:37]} 15. Rfd1 {[%clk 0:02:16]}  a4 {[%clk 0:02:36]} 16. Rac1 {[%clk 0:02:12]}  Reb8 {[%clk 0:02:35]} 17. Qe2 {[%clk 0:02:05]}  b5 {[%clk 0:02:33]} 18. cxb5 {[%clk 0:01:41]}  cxb5 {[%clk 0:02:34]} 19. Qf3 {[%clk 0:01:39]}  Qxf3 {[%clk 0:02:28]} 20. Nxf3 {[%clk 0:01:40]}  b4 {[%clk 0:02:27]} 21. Nb1 {[%clk 0:01:36]}  g5 {[%clk 0:02:19]} 22. Bg3 {[%clk 0:01:36]}  Ne4 {[%clk 0:02:15]} 23. Bh2 {[%clk 0:01:36]}  f5 {[%clk 0:02:15]} 24. Nfd2 {[%clk 0:01:32]}  Nef6 {[%clk 0:02:14]} 25. Nc4 {[%clk 0:01:28]}  Nd5 {[%clk 0:02:12]} 26. f3 {[%clk 0:01:23]}  N7b6 {[%clk 0:02:06]} 27. Nxb6 {[%clk 0:01:18]}  Rxb6 {[%clk 0:02:07]} 28. Kf2 {[%clk 0:01:17]}  f4 {[%clk 0:02:05]} 29. exf4 {[%clk 0:01:11]}  gxf4 {[%clk 0:02:06]} 30. Ke2 {[%clk 0:01:08]}  Kf7 {[%clk 0:02:00]} 31. Kd3 {[%clk 0:01:07]}  Rb5 {[%clk 0:01:53]} 32. Re1 {[%clk 0:00:58]}  Kg6 {[%clk 0:01:47]} 33. Re4 {[%clk 0:00:52]}  Kf5 {[%clk 0:01:45]} 34. Nd2 {[%clk 0:00:47]}  Bf6 {[%clk 0:01:35]} 35. Nf1 {[%clk 0:00:46]}  Bh4 {[%clk 0:00:45]} 36. Re2 {[%clk 0:00:24]}  Rg8 {[%clk 0:00:41]} 37. Rc6 {[%clk 0:00:18]}  a3 {[%clk 0:00:33]} 38. b3 {[%clk 0:00:18]}  Rbb8 {[%clk 0:00:29]} 39. Ra6 {[%clk 0:00:12]}  Ra8 {[%clk 0:00:28]} 40. Rxa8 {[%clk 0:00:12]}  Rxa8 {[%clk 0:00:29]} 41. Rc2 {[%clk 0:00:12]}  Rg8 {[%clk 0:00:26]} 42. Re2 {[%clk 0:00:11]}  h5 {[%clk 0:00:25]} 43. Rc2 {[%clk 0:00:10]}  Nc3 {[%clk 0:00:15]} 44. Rd2 {[%clk 0:00:07]}  Rc8 {[%clk 0:00:14]} 45. Rc2 {[%clk 0:00:07]}  e5 {[%clk 0:00:10]} 46. Nd2 {[%clk 0:00:06]}  exd4 {[%clk 0:00:06]} 47. Nc4 {[%clk 0:00:06]}  Rc6 {[%clk 0:00:03]} 48. Kxd4 {[%clk 0:00:05]}  d5 {[%clk 0:00:03]} 49. Na5 {[%clk 0:00:02]}  Nb5+ {[%clk 0:00:02]} 50. Kd3 {[%clk 0:00:02]}  Rxc2 {[%clk 0:00:03]} 51. Kxc2 {[%clk 0:00:03]}  Nc3 {[%clk 0:00:03]} 52. Nc6 {[%clk 0:00:03]}  Nxa2 {[%clk 0:00:03]} 53. Bg1 {[%clk 0:00:03]}  Be1 {[%clk 0:00:03]} 54. Bc5 {[%clk 0:00:04]}  Ke6 {[%clk 0:00:02]} 55. Nd4+ {[%clk 0:00:03]}  Kd7 {[%clk 0:00:02]} 56. Ne2 {[%clk 0:00:03]}  Nc3 {[%clk 0:00:02]} 57. Bxb4 {[%clk 0:00:02]}  Nxe2 {[%clk 0:00:02]} 58. Bxe1 {[%clk 0:00:03]}  Nd4+ {[%clk 0:00:02]} 59. Kb1 {[%clk 0:00:03]}  Nxb3 {[%clk 0:00:02]} 60. Ka2 {[%clk 0:00:04]}  Nc1+ {[%clk 0:00:02]} 61. Kxa3 {[%clk 0:00:03]}  d4 {[%clk 0:00:03]} 62. Bd2 {[%clk 0:00:04]}  Ne2 {[%clk 0:00:03]} 63. Kb4 {[%clk 0:00:05]}  Ke6 {[%clk 0:00:03]} 64. Kc4 {[%clk 0:00:05]}  Ke5 {[%clk 0:00:04]} 65. Kd3 {[%clk 0:00:05]}  Ng3 {[%clk 0:00:04]} 66. Be1 {[%clk 0:00:06]}  Nf5 {[%clk 0:00:04]} 67. Bf2 {[%clk 0:00:06]}  Ne3 {[%clk 0:00:05]} 68. g3 {[%clk 0:00:06]}  fxg3 {[%clk 0:00:04]} 69. Bxg3+ {[%clk 0:00:07]}  Kd5 {[%clk 0:00:05]} 70. Bf2 {[%clk 0:00:06]}  Nf5 {[%clk 0:00:05]} 71. f4 {[%clk 0:00:06]}  Kc5 {[%clk 0:00:03]} 72. Ke4 {[%clk 0:00:07]}  Nd6+ {[%clk 0:00:03]} 73. Ke5 {[%clk 0:00:06]}  Nc4+ {[%clk 0:00:03]} 74. Ke4 {[%clk 0:00:07]}  Nd2+ {[%clk 0:00:02]} 75. Kd3 {[%clk 0:00:07]}  Nb3 {[%clk 0:00:03]} 76. Ke4 {[%clk 0:00:07]}  Kc4 {[%clk 0:00:03]} 77. f5 {[%clk 0:00:06]}  d3 {[%clk 0:00:03]} 78. Be3 {[%clk 0:00:06]}  Nc5+ {[%clk 0:00:02]} 79. Ke5 {[%clk 0:00:06]}  Nd7+ {[%clk 0:00:02]} 80. Ke6 {[%clk 0:00:06]}  Nb6 {[%clk 0:00:01]} 81. f6 {[%clk 0:00:05]}  Nd5 {[%clk 0:00:02]} 82. Bd2 {[%clk 0:00:06]}  Nxf6 {[%clk 0:00:01]} 83. Kxf6 {[%clk 0:00:07]}  Kd4 {[%clk 0:00:01]} 84. Kg5 {[%clk 0:00:07]}  Ke4 {[%clk 0:00:01]} 85. Kxh5 {[%clk 0:00:07]}  Kf3 {[%clk 0:00:02]} 86. h4 {[%clk 0:00:08]}  Ke4 {[%clk 0:00:02]} 87. Kg6 {[%clk 0:00:08]}  Kf3 {[%clk 0:00:03]} 88. h5 {[%clk 0:00:08]}  Ke4 {[%clk 0:00:04]} 89. h6 {[%clk 0:00:08]}  Kf3 {[%clk 0:00:05]} 90. h7 {[%clk 0:00:09]}  Ke4 {[%clk 0:00:06]} 91. h8=Q {[%clk 0:00:08]}  Kf3 {[%clk 0:00:07]} 92. Qe5 {[%clk 0:00:09]}  Kf2 {[%clk 0:00:07]} 93. Qe3+ {[%clk 0:00:09]}  Kf1 {[%clk 0:00:07]} 94. Qxd3+ {[%clk 0:00:09]}  Kf2 {[%clk 0:00:08]} 95. Qe3+ {[%clk 0:00:10]}  Kf1 {[%clk 0:00:08]} 96. Qf3+ {[%clk 0:00:10]}  Kg1 {[%clk 0:00:08]} 97. Be3+ {[%clk 0:00:10]}  Kh2 {[%clk 0:00:09]} 98. Qg4 {[%clk 0:00:09]} 1-0


[Site "https://www.chess.com"]